Cogmind - Beta 11.1 @@@ ROGUE MODE // 2022.12.04 @ 17:53:17 Player: Questman6167 Result: Destroyed by G-47 Trooper with Particle Gun Performance ------------- Evolutions (1) 500 Regions Visited (2) 400 Robots Destroyed (17) 85 Value Destroyed (456) 456 Prototype IDs (0) 0 Alien Tech Used (0) 0 Bonus (0) 0 TOTAL SCORE: 1441 Bonus ------- None Cogmind --------- Core Integrity 0/400 Matter 105/300 Energy 119/265 System Corruption 2% Temperature Cool (9) Movement Core (250) Ox4 Location -9/Materials Parts ------- > --- POWER (1) -------- Improved Ion Engine > --- PROPULSION (2) --- (None) > --- UTILITY (3) ------ Small Storage Unit Propulsion Shielding > --- WEAPON (3) ------- Mining Claw > --- INVENTORY (8) ---- Improved Terrain Scanner Seismic Detector Peak State ------------ > --- POWER ------------ Ion Engine > --- PROPULSION ------- Light Treads Light Treads > --- UTILITY ---------- Small Storage Unit Improved Terrain Scanner > --- WEAPON ----------- Small Laser Small Laser > --- INVENTORY -------- Ion Engine Seismic Detector Mining Laser [Rating: 9] Favorites ----------- Power Ion Engine Engine Ion Engine Propulsion Light Treads Treads Light Treads Utility Small Storage Unit Device Improved Terrain Scanner Storage Small Storage Unit Processor Signal Interpreter Protection Propulsion Shielding Weapon Small Laser Energy Gun Small Laser Ballistic Gun Light Assault Rifle Ballistic Cannon Light Cannon Launcher Grenade Launcher Special Weapon Mining Laser Slashing Weapon Mining Claw Special Melee Weapon Datajack Build | -11 -10 -9 ------- Run | Scr Mat Mat Slots Evolved 2 | . . 2 Power . | . . . Propulsion . | . . . Utility 1 | . . 1 Weapon 1 | . . 1 Parts Attached 29 | 8 12 9 Power 4 | 1 2 1 Engine 4 | 1 2 1 Core . | . . . Reactor . | . . . Propulsion 2 | 2 . . Treads 2 | 2 . . Leg . | . . . Wheel . | . . . Hover . | . . . Flight . | . . . Utility 7 | 3 . 4 Device 3 | 2 . 1 Storage 2 | 1 . 1 Processor 1 | . . 1 Hackware . | . . . Protection 1 | . . 1 Artifact . | . . . Weapon 16 | 2 10 4 Energy Gun 5 | 2 2 1 Energy Cannon . | . . . Ballistic Gun 1 | . 1 . Ballistic Cannon 1 | . 1 . Launcher 2 | . 2 . Special Weapon 4 | . 3 1 Impact Weapon . | . . . Slashing Weapon 1 | . . 1 Piercing Weapon . | . . . Special Melee Weapon 2 | . 1 1 Unidentified Prototypes . | . . . Parts Lost 17 | . 7 10 Power 3 | . 2 1 Propulsion 2 | . 1 1 Utility 3 | . . 3 Weapon 9 | . 4 5 Highest Loss Streak 10 | . 4 10 To Critical Strikes . | . . . Average Slot Usage (%) 86 | . 95 64 Engine 10 | . 12 5 Treads 21 | . 27 5 Device 10 | . 14 1 Storage 16 | . 14 21 Processor 1 | . . 6 Energy Gun 9 | . 9 9 Ballistic Gun 2 | . 3 . Ballistic Cannon 5 | . 4 8 Launcher 3 | . 4 . Special Weapon 2 | . 3 . Naked Turns . | . . . Heaviest Build 19 | 13 17 19 Greatest Support 40 | 40 40 20 Greatest Overweight (x) 5 | . . 5 Average Overweight (x) . | . . 1 Largest Inventory Capacity 8 | 8 8 8 Average Capacity 7 | 7 8 8 Most Carried 8 | 6 8 5 Average Carried 4 | 2 6 4 Final Capacity 8 | 8 8 8 Final Carried 6 | 6 6 2 Class Distribution -------------------- 100% | Mutant Dominant Class ---------------- Mutant | -10/Materials Mutant | -9/Materials Resources | -11 -10 -9 ----------- Run | Scr Mat Mat Matter Collected 345 | 280 23 42 Remotely . | . . . Salvage Created 479 | 171 139 169 Parts 34 | 14 7 13 Haulers Intercepted . | . . . Recyclers Shooed . | . . . Parts Field Recycled . | . . . Retrieved Matter . | . . . Parts Self-Destructed . | . . . Prevented . | . . . Kills | -11 -10 -9 ------- Run | Scr Mat Mat Combat Hostiles Destroyed 11 | . 7 4 Guns 1 | . . 1 Cannons 6 | . 3 3 AOE 4 | . 4 . Classes Destroyed 6 | 2 2 2 Worker 1 | . 1 . Tunneler 4 | 4 . . Recycler 1 | 1 . . Grunt 8 | . 7 1 Brawler 1 | . . 1 Sentry 2 | . . 2 Best Kill Streak 4 | 3 4 3 Combat Bots Only 4 | . 4 3 Max Kills in Single Turn 2 | 1 2 1 Gunslinging . | . . . Exploded 2 | . 2 . Melee . | . . . Uniques/NPCs Destroyed . | . . . Combat | -11 -10 -9 -------- Run | Scr Mat Mat Damage Taken 1812 | . 838 974 Core 516 | . 104 412 Absorbed by Shields . | . . . Core Remaining (%) 79 | 100 58 . Volleys Fired 47 | 11 26 10 Largest 3 | 2 2 3 Hottest 175 | 80 140 175 Shots Fired 78 | 22 39 17 Gun 53 | 22 21 10 Cannon 13 | . 7 6 Launcher 7 | . 7 . Special 5 | . 4 1 Kinetic 26 | . 20 6 Thermal 45 | 22 12 11 Explosive 7 | . 7 . Electromagnetic . | . . . Robot Hit Streak 10 | 6 10 5 Robot Miss Streak 3 | 3 2 1 Penetration Max . | . . . Secondary Targets . | . . . Shots Hit Robots 50 | 13 25 12 Core Hits 26 | 6 12 8 Critical Kills . | . . . Critical Parts Destroyed . | . . . Critical Strikes . | . . . Melee Attacks . | . . . Impact . | . . . Slashing . | . . . Piercing . | . . . Sneak Attacks . | . . . Combat Hostiles . | . . . Follow-up Attacks . | . . . Damage Inflicted 1078 | 156 727 195 Guns 355 | 156 108 91 Cannons 208 | . 104 104 Explosions 419 | . 419 . Melee . | . . . Ramming . | . . . Kinetic 282 | . 178 104 Thermal 377 | 156 130 91 Explosive 419 | . 419 . Electromagnetic . | . . . Impact . | . . . Slashing . | . . . Piercing . | . . . Highest Corruption 2 | . . 2 Average Corruption 2 | . . 2 Corruption Purged . | . . . Corruption Blocked . | . . . Overload Shots . | . . . Overflow Damage . | . . . Projectiles . | . . . Explosions . | . . . Melee . | . . . Knockbacks 2 | . 2 . Impact . | . . . Kinetic 2 | . 2 . Secondary . | . . . Self-Inflicted Damage 30 | . 30 . Shots 2 | . 2 . Rammed . | . . . Targets Rammed . | . . . Kicked . | . . . Crushed . | . . . Highest Temperature 180 | 108 180 98 Average Temperature 51 | 40 64 31 Received Heat Transfer 960 | . 453 507 Siege Activations . | . . . Robots Corrupted . | . . . Combat Hostiles . | . . . Parts Fried . | . . . Impact Corruptions . | . . . Robots Melted . | . . . Combat Hostiles . | . . . Parts Melted . | . . . Heat Transferred 848 | 350 275 223 Parts Sabotaged . | . . . Parts Stolen . | . . . Parts Stripped . | . . . Power Chain Reactions . | . . . Missiles Intercepted . | . . . Alert | -11 -10 -9 ------- Run | Scr Mat Mat Peak Influence 279 | 25 279 193 Initial 113 | . 16 113 Average 84 | 12 105 129 Maximum Alert Level 1 | . 1 . Low Security (%) 93 | 100 88 100 Level 1 6 | . 11 . Level 2 . | . . . Level 3 . | . . . Level 4 . | . . . Level 5 . | . . . High Security . | . . . Max Security . | . . . Squads Dispatched 6 | . 4 2 Investigation 5 | . 4 1 Extermination . | . . . Reinforcement 1 | . . 1 Assault . | . . . Garrison . | . . . Intercept . | . . . Searches Triggered . | . . . Construction Impeded . | . . . Haulers Reinforced . | . . . Active Scanning Responses . | . . . Cargo Convoy Interrupts . | . . . Stealth | -11 -10 -9 --------- Run | Scr Mat Mat Distress Signals . | . . . Communications Jammed . | . . . Distress Signals . | . . . Times Spotted 19 | . 8 11 Peak Tracking Total 9 | . 4 9 Tactical Retreats 1 | . . 1 Traps | -11 -10 -9 ------- Run | Scr Mat Mat Traps Triggered 4 | . 3 1 Indirectly . | . . . Trap Hack Attempts . | . . . Triggered . | . . . Disarmed . | . . . Reprogrammed . | . . . Reused . | . . . Traps Extracted . | . . . Installed . | . . . Triggered . | . . . Machines | -11 -10 -9 ---------- Run | Scr Mat Mat Machines Disabled 1 | . 1 . Max in Single Turn 1 | . 1 . Machines Sabotaged . | . . . Garrisons Compromised . | . . . Overloaded Fab Kills . | . . . Hacking | -11 -10 -9 --------- Run | Scr Mat Mat Machines Accessed 6 | . 5 1 Terminals 3 | . 3 . Fabricators . | . . . Repair Stations . | . . . Recycling Units 3 | . 2 1 Scanalyzers . | . . . Garrison Access . | . . . Total Hacks 14 | . 13 1 Successful 12 | . 11 1 Failed 2 | . 2 . Catastrophic . | . . . Database Lockouts . | . . . Manual . | . . . Terminals 8 | . 8 . Fabricators . | . . . Repair Stations . | . . . Recycling Units 6 | . 5 1 Scanalyzers . | . . . Garrison Access . | . . . Terminal Hacks 7 | . 7 . Record 5 | . 5 . Dispatch Records 1 | . 1 . Hauler Manifests 1 | . 1 . Fabricator Hacks . | . . . Repair Station Hacks . | . . . Recycling Unit Hacks 5 | . 4 1 Report Inventory 3 | . 2 1 Retrieve Components 2 | . 2 . Scanalyzer . | . . . Garrison Access Hacks . | . . . Unauthorized Hacks . | . . . Terminals . | . . . Fabricators . | . . . Repair Stations . | . . . Recycling Units . | . . . Scanalyzers . | . . . Garrison Access . | . . . Data Cores Recovered . | . . . Used . | . . . Hacking Detections 4 | . 4 . Full Trace Events 1 | . 1 . Feedback Events . | . . . Feedback Blocked . | . . . Robot Schematics Acquired . | . . . Robots Built . | . . . Authchips . | . . . Time . | . . . Total Robot Build Rating . | . . . Part Schematics Acquired . | . . . Parts Built . | . . . Authchips . | . . . Time . | . . . Total Part Build Rating . | . . . Parts Repaired . | . . . Time . | . . . Parts Recycled . | . . . Recycled Matter . | . . . Retrieved Matter . | . . . Retrieved Components 4 | . 4 . Parts Scanalyzed . | . . . Part Schematics Acquired . | . . . Parts Damaged . | . . . Bothacking | -11 -10 -9 ------------ Run | Scr Mat Mat Used RIF Installer . | . . . Robots Hacked . | . . . Non-combat . | . . . Combat . | . . . Robot Hacks Applied . | . . . Relay Couplers Released . | . . . Fabnet Peak Effective % . | . . . Robots Rewired . | . . . Allies Hacked . | . . . Hacks Repelled . | . . . Allies | -11 -10 -9 -------- Run | Scr Mat Mat Total Allies . | . . . Largest Group . | . . . Highest-Rated Group . | . . . Highest-Rated Ally . | . . . Total Orders . | . . . Ally Attacks . | . . . Total Damage . | . . . Kills . | . . . Allies Corrupted . | . . . Allies Melted . | . . . Intel | -11 -10 -9 ------- Run | Scr Mat Mat Robot Analysis Total . | . . . Derelict Logs Recovered . | . . . Drone Launches . | . . . Drone Recoveries . | . . . Exploration | -11 -10 -9 ------------- Run | Scr Mat Mat Turns Passed 637 | 180 326 131 Spaces Moved 281 | 83 147 51 Core 17 | 3 . 14 Treads 264 | 80 147 37 Legs . | . . . Wheels . | . . . Hover . | . . . Flight . | . . . Fastest Speed 50 | 50 160 160 Average Speed 162 | 156 160 181 Slowest Speed 300 | 160 160 300 Overloaded Moves . | . . . Propulsion Burnouts . | . . . Robots Hopped . | . . . Cave-ins Triggered . | . . . Exploration Rate (%) 16 | 4 38 7 Regions Visited 2 Branch Regions . Pre-discovered Areas . | . . . Known Exits Taken . | . . . Unknown Exits Taken 2 | 1 1 . Scrap Searched . | . . . Spaces Dug . | . . . Terrain Destroyed 39 | . 39 . Melee . | . . . Projectile . | . . . AOE 39 | . 39 . Terrain Rammed . | . . . Walls Destroyed . | . . . Machines Disabled . | . . . Actions | -11 -10 -9 --------- Run | Scr Mat Mat Total 369 | 108 191 70 Wait . | . . . Move 279 | 82 146 51 Hop . | . . . Pick Up 13 | 7 6 . Fast Attach 11 | 6 1 4 Attach 11 | 1 6 4 Detach . | . . . Swap 7 | 1 5 1 Drop 1 | . 1 . Fire 47 | 11 26 10 Melee . | . . . Ram . | . . . Kick . | . . . Crush . | . . . Escape Stasis . | . . . Rewire . | . . . Trap . | . . . Miscellaneous . | . . . Route ------- -11/Scrapyard -10/Materials -9/Materials History --------- Turn | Location | Event 8 | -11/Scrapyard | Discovered new exit (range 15) 181 | -11/Scrapyard | Entered Materials 339 | -10/Materials | Build established: Mutant 339 | -10/Materials | Lost 4 parts (1p3w) 488 | -10/Materials | Discovered new exit (range 13) 507 | -10/Materials | Entered another Materials area 507 | -9/Materials | Evolved 2 slots: Utility x1, Weapon x1 511 | -9/Materials | Lost 3 parts (1p1n1w) 610 | -9/Materials | Core integrity fell below 50% 630 | -9/Materials | Core integrity fell below 20% 638 | -9/Materials | Destroyed by G-47 Trooper with Particle Gun Last Messages --------------- 00590_ Y-45 Defender destroyed. 00591_ Mining Laser destroyed. 00593_ Sml. Laser destroyed. 00593_ G-34 Mercenary destroyed. 00600_ Acquired Heat Sink. 00602_ Lgt. Cannon destroyed. 00606_ Critical hit (Burn: +37). 00606_ Acquired Mining Claw. 00610_ Critical hit (Burn: +37). 00615_ Acquired Beam Rifle. 00620_ Y-45 Defender destroyed. 00623_ Sml. Storage Unit destroyed. 00623_ Heat Sink destroyed. Only a single melee weapon may be active at a time, Mining Claw automatically deactivated. (Secondary inactive melee weapons have a chance to conduct follow-up attacks, see the manual.) 00631_ Acquired Imp. Ion Engine. 00632_ Datajack destroyed. 00634_ Beam Rifle destroyed. 00635_ Acquired 42 matter. Map ----- +----------------------------------------------------+ | | | | | | | | | | | | | | | | | | | | | | | | | | | | | | | | | ?????????????????????????????????????????????????? | | ??????????##########?????????????????????????????? | | ??????????? #?????##??????????????????????? | | ??????????? ###### #??????????????????????? | | ???????????? # / #??????????????????????? | | ##########? """ # / #??????????????????????? | | # #? """"" # #??????????????????????? | | # """ #? """"" # !% #??????????????????????? | | # """ # """"" # g[ %#??????????????????????? | | + """ # """ # g[g@#??????????????????????? | | # """ #########+####g#########????????????????? | | # """ ####### !% % [%* ???????????? | | # + "%" ==*% * =% ???????????? | | #############+################+#??????????????? | | #???????# #???????????????????????????? | | #???????# """ #???????????????????????????? | | #???????# "Y" #???????????????????????????? | | #???????# #???????????????????????????? | | #???????# #???????????????????????????? | | #???????# """ #???????????????????????????? | | ????????# """ #???????????????????????????? | | ????????# """ #???????????????????????????? | | ????????###########???????????????????????????? | | ??????????????????????????????????????????????? | | ?????????????????????????????????????????????????? | | ?????????????????????????????????????????????????? | | ?????????????????????????????????????????????????? | | ?????????????????????????????????????????????????? | | ?????????????????????????????????????????????????? | | ?????????????????????????????????????????????????? | | ?????????????????????????????????????????????????? | | ?????????????????????????????????????????????????? | | ?????????????????????????????????????????????????? | | ?????????????????????????????????????????????????? | +----------------------------------------------------+ Best States ------------- Heat Dissipation 38 Energy Generation 10 Energy Capacity 250 Matter Stores 300 Matter Capacity 300 Sight Range 16 Terrain Scan Range 16 Terrain Scan Density 10 Propulsion Shielding 33 Evasion (%) 40 Recoil Reduction 2 Item Schematics ----------------- None Robot Schematics ------------------ None Fabricated ------------ Nothing Alien Tech Used ----------------- None Achievements -------------- Party Time Challenges ------------ None Game ------ Seed TractorAuthchipFacilitator Manual? 0 Play Time 00:13:35 Cumulative 3.0 hours Start 2022.12.04 @ 17:40:28 End 2022.12.04 @ 17:53:17 Sessions 1 Manual Loads 0 Difficulty Rogue Special Mode None Game No. 7 Rogue 7 Adventurer 0 Explorer 0 Win Type - Total 0 Types 0/0/0/0/0/0/0/0/0 Lore% 3 Gallery% 7 Achievement% 8 Wizard Run 0 Options --------- ASCII 0 Keyboard 0 Movement Mouse Keybinds 0 Fullscreen 1 Font 24/Smallcaps Map View 76x56 Tactical HUD 1 Map Filters NONE Filters NONE Steam 1 RUN: ff47bb31-1015-49e8-ae58-2fe7101efcd2